[Event "Early-Titled-Tuesday-Blitz-April-16-2024"]
[Site "Chess.com"]
[Date "2024.04.16"]
[Round "4"]
[White "vedantgoswami"]
[Black "CristianS27"]
[Result "0-1"]
[WhiteElo "2328"]
[BlackElo "2531"]
[TimeControl "180+1"]
[EndTime "8:41:24 PDT"]
[Termination "CristianS27 won on time"]

1. d4 {[%clk 0:02:54.9]} 1... Nf6 {[%clk 0:02:59.6]} 2. Bf4 {[%clk 0:02:52.7]}
2... c5 {[%clk 0:02:58.9]} 3. c3 {[%clk 0:02:51.5]} 3... cxd4 {[%clk 0:02:54.4]}
4. cxd4 {[%clk 0:02:51]} 4... Nc6 {[%clk 0:02:54.2]} 5. e3 {[%clk 0:02:46.8]}
5... Qb6 {[%clk 0:02:47.6]} 6. Qb3 {[%clk 0:02:38.5]} 6... Qxb3 {[%clk
0:02:39.8]} 7. axb3 {[%clk 0:02:37.3]} 7... d6 {[%clk 0:02:38.6]} 8. Nc3 {[%clk
0:02:27.5]} 8... e5 {[%clk 0:02:37.1]} 9. dxe5 {[%clk 0:02:19.2]} 9... dxe5
{[%clk 0:02:38]} 10. Bg5 {[%clk 0:02:19.8]} 10... Bb4 {[%clk 0:02:34]} 11. Bxf6
{[%clk 0:02:11.9]} 11... gxf6 {[%clk 0:02:34.9]} 12. Bc4 {[%clk 0:02:07]} 12...
Be6 {[%clk 0:02:32.8]} 13. Ne2 {[%clk 0:02:03.6]} 13... Rg8 {[%clk 0:02:29.7]}
14. O-O {[%clk 0:02:01.6]} 14... O-O-O {[%clk 0:02:20.6]} 15. Rfd1 {[%clk
0:01:42.5]} 15... Na5 {[%clk 0:02:09]} 16. Nd5 {[%clk 0:01:28.7]} 16... Nxc4
{[%clk 0:01:44.3]} 17. bxc4 {[%clk 0:01:26.3]} 17... Bc5 {[%clk 0:01:14]} 18.
Nec3 {[%clk 0:01:12.9]} 18... Kb8 {[%clk 0:00:54.5]} 19. Nxf6 {[%clk 0:00:57.2]}
19... Rxd1+ {[%clk 0:00:30.8]} 20. Rxd1 {[%clk 0:00:56.1]} 20... Rg6 {[%clk
0:00:31.1]} 21. Nfd5 {[%clk 0:00:55.2]} 21... a6 {[%clk 0:00:24.5]} 22. b4
{[%clk 0:00:55]} 22... Bf8 {[%clk 0:00:23.9]} 23. c5 {[%clk 0:00:52.4]} 23... a5
{[%clk 0:00:23]} 24. bxa5 {[%clk 0:00:40.7]} 24... Bxc5 {[%clk 0:00:22.6]} 25.
Ne4 {[%clk 0:00:39.6]} 25... Ba3 {[%clk 0:00:14.2]} 26. Rd3 {[%clk 0:00:36]}
26... Bf8 {[%clk 0:00:11.6]} 27. f4 {[%clk 0:00:32.6]} 27... Bf5 {[%clk
0:00:11.4]} 28. Ndc3 {[%clk 0:00:27.2]} 28... Bb4 {[%clk 0:00:11]} 29. Rd8+
{[%clk 0:00:17]} 29... Kc7 {[%clk 0:00:10.8]} 30. Re8 {[%clk 0:00:16.3]} 30...
exf4 {[%clk 0:00:09.8]} 31. exf4 {[%clk 0:00:16]} 31... Rc6 {[%clk 0:00:05.8]}
32. Nd5+ {[%clk 0:00:15.2]} 32... Kd7 {[%clk 0:00:04.6]} 33. Rb8 {[%clk
0:00:12]} 33... Bxa5 {[%clk 0:00:03.1]} 34. Rxb7+ {[%clk 0:00:10.4]} 34... Kc8
{[%clk 0:00:03.3]} 35. Re7 {[%clk 0:00:09]} 35... Rc1+ {[%clk 0:00:02.8]} 36.
Kf2 {[%clk 0:00:09.2]} 36... Rc2+ {[%clk 0:00:03.1]} 37. Kf3 {[%clk 0:00:09.3]}
37... Be6 {[%clk 0:00:04]} 38. Nd6+ {[%clk 0:00:08.6]} 38... Kd8 {[%clk
0:00:03.7]} 39. Nxf7+ {[%clk 0:00:08.8]} 39... Bxf7 {[%clk 0:00:03.2]} 40. Rxf7
{[%clk 0:00:09]} 40... h5 {[%clk 0:00:03.4]} 41. f5 {[%clk 0:00:08.5]} 41... Ke8
{[%clk 0:00:03.2]} 42. Re7+ {[%clk 0:00:08.2]} 42... Kf8 {[%clk 0:00:03.4]} 43.
f6 {[%clk 0:00:08.6]} 43... Rc5 {[%clk 0:00:03]} 44. Nf4 {[%clk 0:00:08.6]}
44... Rf5 {[%clk 0:00:02.2]} 45. Ke4 {[%clk 0:00:08]} 45... Rxf6 {[%clk
0:00:02.4]} 46. Re6 {[%clk 0:00:06.6]} 46... Rf7 {[%clk 0:00:01.9]} 47. Re5
{[%clk 0:00:05.7]} 47... h4 {[%clk 0:00:01.9]} 48. Rxa5 {[%clk 0:00:05.3]} 48...
Re7+ {[%clk 0:00:01.8]} 49. Re5 {[%clk 0:00:04.8]} 49... Rb7 {[%clk 0:00:02.7]}
50. Rf5+ {[%clk 0:00:04.9]} 50... Kg7 {[%clk 0:00:02.7]} 51. Nd5 {[%clk
0:00:05]} 51... Rb2 {[%clk 0:00:02.1]} 52. Rg5+ {[%clk 0:00:05.3]} 52... Kh6
{[%clk 0:00:02.8]} 53. Rg4 {[%clk 0:00:04.8]} 53... Kh5 {[%clk 0:00:03.3]} 54.
Nf6+ {[%clk 0:00:04.6]} 54... Kh6 {[%clk 0:00:03.9]} 55. Kf5 {[%clk 0:00:04.3]}
55... Rf2+ {[%clk 0:00:03.3]} 56. Rf4 {[%clk 0:00:04.5]} 56... Rxg2 {[%clk
0:00:03.7]} 57. Rxh4+ {[%clk 0:00:04.8]} 57... Kg7 {[%clk 0:00:03.5]} 58. Rh7+
{[%clk 0:00:04.9]} 58... Kf8 {[%clk 0:00:03.3]} 59. Ng4 {[%clk 0:00:04.6]} 59...
Rg1 {[%clk 0:00:02.9]} 60. Kg5 {[%clk 0:00:04.4]} 60... Ra1 {[%clk 0:00:02.7]}
61. h3 {[%clk 0:00:04.8]} 61... Kg8 {[%clk 0:00:03.1]} 62. Kh4 {[%clk
0:00:05.4]} 62... Kxh7 {[%clk 0:00:03]} 63. Nf2 {[%clk 0:00:05.4]} 63... Kg6
{[%clk 0:00:02.6]} 64. Ng4 {[%clk 0:00:06.3]} 64... Ra4 {[%clk 0:00:03]} 65. Kg3
{[%clk 0:00:06.1]} 65... Kg5 {[%clk 0:00:03.9]} 66. Nh2 {[%clk 0:00:03.4]} 66...
Ra3+ {[%clk 0:00:04.8]} 67. Nf3+ {[%clk 0:00:04]} 67... Kf5 {[%clk 0:00:04.8]}
68. h4 {[%clk 0:00:02.7]} 68... Rb3 {[%clk 0:00:04.6]} 69. h5 {[%clk 0:00:02.4]}
69... Ra3 {[%clk 0:00:05]} 0-1

[Event "Early-Titled-Tuesday-Blitz-April-16-2024"]
[Site "Chess.com"]
[Date "2024.04.16"]
[Round "4"]
[White "LevonAronian"]
[Black "Zhigalko_Sergei"]
[Result "0-1"]
[WhiteElo "3070"]
[BlackElo "2908"]
[TimeControl "180+1"]
[EndTime "8:41:26 PDT"]
[Termination "Zhigalko_Sergei won by resignation"]

1. e4 {[%clk 0:03:00.9]} 1... c5 {[%clk 0:03:00.2]} 2. Nf3 {[%clk 0:03:01.3]}
2... Nc6 {[%clk 0:03:00.9]} 3. Bb5 {[%clk 0:03:01.2]} 3... Nf6 {[%clk
0:03:01.4]} 4. Bxc6 {[%clk 0:02:59.3]} 4... dxc6 {[%clk 0:03:02.3]} 5. d3 {[%clk
0:02:58.4]} 5... Bg4 {[%clk 0:03:02.6]} 6. h3 {[%clk 0:02:57.6]} 6... Bh5 {[%clk
0:03:03]} 7. Nbd2 {[%clk 0:02:51.1]} 7... Qc7 {[%clk 0:03:02.4]} 8. Nc4 {[%clk
0:02:44.1]} 8... Nd7 {[%clk 0:03:00.1]} 9. g4 {[%clk 0:02:26.6]} 9... Bg6 {[%clk
0:02:59.9]} 10. Nh4 {[%clk 0:02:26]} 10... b5 {[%clk 0:02:57.5]} 11. Ne3 {[%clk
0:02:21.1]} 11... e6 {[%clk 0:02:55.7]} 12. O-O {[%clk 0:01:56.9]} 12... Be7
{[%clk 0:02:55.1]} 13. Neg2 {[%clk 0:01:50.1]} 13... f6 {[%clk 0:02:44]} 14. Qe2
{[%clk 0:01:38]} 14... Bf7 {[%clk 0:02:43.5]} 15. f4 {[%clk 0:01:38.3]} 15...
O-O {[%clk 0:02:16.2]} 16. c4 {[%clk 0:01:37.2]} 16... a5 {[%clk 0:01:43.2]} 17.
Bd2 {[%clk 0:01:13.9]} 17... a4 {[%clk 0:01:43]} 18. Bc3 {[%clk 0:01:13.7]}
18... Rad8 {[%clk 0:01:29.2]} 19. Rae1 {[%clk 0:01:04]} 19... Bd6 {[%clk
0:01:11.5]} 20. b3 {[%clk 0:00:53.4]} 20... Ra8 {[%clk 0:01:04.4]} 21. Qb2
{[%clk 0:00:35.4]} 21... b4 {[%clk 0:00:45.3]} 22. Bd2 {[%clk 0:00:35.1]} 22...
axb3 {[%clk 0:00:46]} 23. axb3 {[%clk 0:00:34.9]} 23... Ra3 {[%clk 0:00:46.7]}
24. Nf3 {[%clk 0:00:27.8]} 24... Rfa8 {[%clk 0:00:45.2]} 25. e5 {[%clk 0:00:24]}
25... Be7 {[%clk 0:00:23.2]} 26. Bc1 {[%clk 0:00:06.2]} 26... Ra2 {[%clk
0:00:23]} 27. Qb1 {[%clk 0:00:06.5]} 27... Bg6 {[%clk 0:00:06.9]} 28. Bb2 {[%clk
0:00:02.7]} 28... f5 {[%clk 0:00:03.9]} 29. g5 {[%clk 0:00:01.7]} 29... Bh5
{[%clk 0:00:04.3]} 30. Ngh4 {[%clk 0:00:01]} 30... Nf8 {[%clk 0:00:04.8]} 31.
Rf2 {[%clk 0:00:01.3]} 31... Ng6 {[%clk 0:00:05.3]} 32. Nxg6 {[%clk 0:00:01.7]}
32... Bxg6 {[%clk 0:00:06.2]} 33. Nh4 {[%clk 0:00:01.6]} 33... Bh5 {[%clk
0:00:07]} 34. Ng2 {[%clk 0:00:02.2]} 34... Qd7 {[%clk 0:00:07.1]} 35. Ne3 {[%clk
0:00:02.1]} 35... h6 {[%clk 0:00:07.5]} 36. h4 {[%clk 0:00:02.2]} 36... R2a7
{[%clk 0:00:05.1]} 37. Kg2 {[%clk 0:00:02.1]} 37... Rd8 {[%clk 0:00:05.7]} 38.
Rd2 {[%clk 0:00:01.4]} 38... Qe8 {[%clk 0:00:06.3]} 39. Kg3 {[%clk 0:00:01.7]}
39... Rad7 {[%clk 0:00:06.8]} 40. Rh1 {[%clk 0:00:02.3]} 40... Qg6 {[%clk
0:00:07.1]} 41. Qf1 {[%clk 0:00:02.6]} 41... hxg5 {[%clk 0:00:05.3]} 42. hxg5
{[%clk 0:00:03]} 42... Bxg5 {[%clk 0:00:06.2]} 43. fxg5 {[%clk 0:00:03.4]} 43...
Qxg5+ {[%clk 0:00:07.1]} 44. Kf2 {[%clk 0:00:03.9]} 44... Qf4+ {[%clk
0:00:07.1]} 45. Kg2 {[%clk 0:00:04.1]} 45... Qxe3 {[%clk 0:00:07.5]} 46. Bc1
{[%clk 0:00:04.3]} 46... Rxd3 {[%clk 0:00:07]} 47. Rxd3 {[%clk 0:00:04.1]} 47...
Qxd3 {[%clk 0:00:07.9]} 48. Qxd3 {[%clk 0:00:04.4]} 48... Rxd3 {[%clk
0:00:08.5]} 49. Rxh5 {[%clk 0:00:05.1]} 49... Rxb3 {[%clk 0:00:09]} 50. Rh3
{[%clk 0:00:05.3]} 50... Rb1 {[%clk 0:00:06.2]} 51. Be3 {[%clk 0:00:05.5]} 51...
b3 {[%clk 0:00:05.5]} 52. Bxc5 {[%clk 0:00:05.7]} 52... g5 {[%clk 0:00:04.4]}
53. Rd3 {[%clk 0:00:04.1]} 53... Kf7 {[%clk 0:00:04]} 54. Rd7+ {[%clk 0:00:04]}
54... Kg6 {[%clk 0:00:04.1]} 55. Re7 {[%clk 0:00:04.6]} 55... b2 {[%clk
0:00:03.7]} 56. Rxe6+ {[%clk 0:00:04.8]} 56... Kh5 {[%clk 0:00:04]} 57. Bd4
{[%clk 0:00:03.7]} 57... Rg1+ {[%clk 0:00:03.6]} 58. Bxg1 {[%clk 0:00:03.8]}
58... b1=Q {[%clk 0:00:04.5]} 59. Re8 {[%clk 0:00:03.6]} 59... Qe4+ {[%clk
0:00:04.7]} 60. Kf1 {[%clk 0:00:04.3]} 60... Qxc4+ {[%clk 0:00:04.6]} 61. Ke1
{[%clk 0:00:04.9]} 61... Qe4+ {[%clk 0:00:04.3]} 62. Kd2 {[%clk 0:00:04.8]}
62... Kg4 {[%clk 0:00:04]} 63. Bb6 {[%clk 0:00:04.2]} 63... Qd5+ {[%clk
0:00:03.7]} 64. Kc3 {[%clk 0:00:03.9]} 64... Qb5 {[%clk 0:00:02.9]} 65. Bc7
{[%clk 0:00:03.5]} 65... Qc5+ {[%clk 0:00:03.3]} 66. Kd3 {[%clk 0:00:03.1]}
66... Qd5+ {[%clk 0:00:03.6]} 67. Kc3 {[%clk 0:00:03.4]} 67... Qc5+ {[%clk
0:00:03.9]} 68. Kd3 {[%clk 0:00:03.7]} 68... f4 {[%clk 0:00:04.8]} 69. Rd8
{[%clk 0:00:03.6]} 69... Qb5+ {[%clk 0:00:04.4]} 70. Kd4 {[%clk 0:00:03.4]}
70... Qb4+ {[%clk 0:00:04.1]} 71. Kd3 {[%clk 0:00:03.4]} 71... Qb3+ {[%clk
0:00:04.3]} 72. Kd4 {[%clk 0:00:03.7]} 72... f3 {[%clk 0:00:04.5]} 73. Bd6
{[%clk 0:00:02.3]} 73... f2 {[%clk 0:00:04.2]} 74. Rf8 {[%clk 0:00:02.5]} 74...
Qd1+ {[%clk 0:00:04.6]} 75. Kc5 {[%clk 0:00:02.8]} 75... f1=Q {[%clk 0:00:05.5]}
76. Rxf1 {[%clk 0:00:02.3]} 76... Qxf1 {[%clk 0:00:06.4]} 77. Kxc6 {[%clk
0:00:02.8]} 77... Kf5 {[%clk 0:00:06.6]} 78. Kd7 {[%clk 0:00:03.3]} 78... Qc4
{[%clk 0:00:06.6]} 0-1

[Event "Early-Titled-Tuesday-Blitz-April-16-2024"]
[Site "Chess.com"]
[Date "2024.04.16"]
[Round "4"]
[White "AsselLesbekova"]
[Black "GP9isback23"]
[Result "1/2-1/2"]
[WhiteElo "2409"]
[BlackElo "2646"]
[TimeControl "180+1"]
[EndTime "8:41:33 PDT"]
[Termination "Game drawn by repetition"]

1. e4 {[%clk 0:03:00.9]} 1... c5 {[%clk 0:02:59.8]} 2. Nf3 {[%clk 0:03:01.1]}
2... e5 {[%clk 0:02:59.9]} 3. Be2 {[%clk 0:02:54.6]} 3... Nc6 {[%clk 0:02:55]}
4. c3 {[%clk 0:02:54.2]} 4... Nf6 {[%clk 0:02:54.2]} 5. d3 {[%clk 0:02:53.4]}
5... d5 {[%clk 0:02:50.8]} 6. exd5 {[%clk 0:02:53.2]} 6... Nxd5 {[%clk
0:02:51.7]} 7. O-O {[%clk 0:02:52.3]} 7... Be7 {[%clk 0:02:52.2]} 8. d4 {[%clk
0:02:49.5]} 8... cxd4 {[%clk 0:02:35.1]} 9. cxd4 {[%clk 0:02:50.4]} 9... e4
{[%clk 0:02:33.6]} 10. Nfd2 {[%clk 0:02:42.7]} 10... e3 {[%clk 0:02:29.3]} 11.
Nb3 {[%clk 0:02:42.5]} 11... exf2+ {[%clk 0:02:27.9]} 12. Rxf2 {[%clk
0:02:42.8]} 12... O-O {[%clk 0:02:28.5]} 13. Nc3 {[%clk 0:02:41.5]} 13... Be6
{[%clk 0:02:27.5]} 14. Bf3 {[%clk 0:02:27.6]} 14... Rc8 {[%clk 0:02:01.7]} 15.
Bd2 {[%clk 0:02:04.9]} 15... Bh4 {[%clk 0:01:44.3]} 16. g3 {[%clk 0:01:59.4]}
16... Bf6 {[%clk 0:01:42.8]} 17. Rc1 {[%clk 0:01:58.1]} 17... Nxd4 {[%clk
0:01:16.3]} 18. Bxd5 {[%clk 0:01:37.8]} 18... Bxd5 {[%clk 0:01:11.7]} 19. Nxd5
{[%clk 0:01:37.7]} 19... Qxd5 {[%clk 0:00:43]} 20. Rxc8 {[%clk 0:01:36.9]} 20...
Rxc8 {[%clk 0:00:42.5]} 21. Bc3 {[%clk 0:01:25.6]} 21... Rd8 {[%clk 0:00:31.1]}
22. Nxd4 {[%clk 0:00:59.8]} 22... Bxd4 {[%clk 0:00:28.9]} 23. Bxd4 {[%clk
0:00:57.1]} 23... Qxd4 {[%clk 0:00:29]} 24. Qxd4 {[%clk 0:00:54.5]} 24... Rxd4
{[%clk 0:00:29.9]} 25. Rc2 {[%clk 0:00:54]} 25... g6 {[%clk 0:00:29.7]} 26. Kf2
{[%clk 0:00:44.3]} 26... Rd7 {[%clk 0:00:29.6]} 27. Ke3 {[%clk 0:00:42]} 27...
f6 {[%clk 0:00:24.1]} 28. Rc8+ {[%clk 0:00:41.2]} 28... Kf7 {[%clk 0:00:24.7]}
29. Ra8 {[%clk 0:00:41.5]} 29... a6 {[%clk 0:00:25.1]} 30. Rh8 {[%clk
0:00:41.3]} 30... h5 {[%clk 0:00:22.8]} 31. Rb8 {[%clk 0:00:36.4]} 31... Ke6
{[%clk 0:00:23]} 32. Rg8 {[%clk 0:00:32.1]} 32... Kf5 {[%clk 0:00:22.9]} 33. h3
{[%clk 0:00:29.6]} 33... Rc7 {[%clk 0:00:19.6]} 34. Kd3 {[%clk 0:00:29]} 34...
g5 {[%clk 0:00:19.3]} 35. Rh8 {[%clk 0:00:26.9]} 35... Kg6 {[%clk 0:00:17]} 36.
Rg8+ {[%clk 0:00:26.4]} 36... Rg7 {[%clk 0:00:17.2]} 37. Rh8 {[%clk 0:00:25.5]}
37... Rd7+ {[%clk 0:00:13.6]} 38. Ke3 {[%clk 0:00:24.2]} 38... Rc7 {[%clk
0:00:10.7]} 39. Kd3 {[%clk 0:00:23]} 39... f5 {[%clk 0:00:07.8]} 40. Rg8+ {[%clk
0:00:21.9]} 40... Rg7 {[%clk 0:00:07.6]} 41. Rh8 {[%clk 0:00:22.5]} 41... Rd7+
{[%clk 0:00:06.2]} 42. Ke3 {[%clk 0:00:22.8]} 42... Re7+ {[%clk 0:00:06.9]} 43.
Kf3 {[%clk 0:00:22.9]} 43... Rc7 {[%clk 0:00:06.4]} 44. Rg8+ {[%clk 0:00:23.2]}
44... Kf6 {[%clk 0:00:06.9]} 45. Rf8+ {[%clk 0:00:23.2]} 45... Kg6 {[%clk
0:00:03.9]} 46. Rg8+ {[%clk 0:00:23.4]} 46... Kh6 {[%clk 0:00:03.6]} 47. Rh8+
{[%clk 0:00:23.6]} 47... Kg7 {[%clk 0:00:03.7]} 48. Rxh5 {[%clk 0:00:22.4]}
48... Kg6 {[%clk 0:00:04.1]} 49. Rh8 {[%clk 0:00:22.4]} 49... Rc2 {[%clk
0:00:04.8]} 50. Rg8+ {[%clk 0:00:19.7]} 50... Kf6 {[%clk 0:00:05.1]} 51. Rf8+
{[%clk 0:00:20.1]} 51... Ke6 {[%clk 0:00:05.5]} 52. b4 {[%clk 0:00:14.9]} 52...
Rxa2 {[%clk 0:00:05.1]} 53. Rb8 {[%clk 0:00:15.4]} 53... Ra3+ {[%clk 0:00:04.2]}
54. Kf2 {[%clk 0:00:14.4]} 54... f4 {[%clk 0:00:04.8]} 55. gxf4 {[%clk
0:00:12.6]} 55... gxf4 {[%clk 0:00:05.7]} 56. Rxb7 {[%clk 0:00:12.9]} 56... Rxh3
{[%clk 0:00:06]} 57. Rb6+ {[%clk 0:00:13.5]} 57... Ke5 {[%clk 0:00:06.4]} 58.
Rxa6 {[%clk 0:00:14.1]} 58... Rb3 {[%clk 0:00:06]} 59. Rb6 {[%clk 0:00:10.1]}
59... Kf5 {[%clk 0:00:05.2]} 60. Rb8 {[%clk 0:00:09.9]} 60... Rb2+ {[%clk
0:00:04.2]} 61. Kf3 {[%clk 0:00:09.6]} 61... Rb3+ {[%clk 0:00:05.1]} 62. Kf2
{[%clk 0:00:10.2]} 62... Kg4 {[%clk 0:00:05.5]} 63. Rg8+ {[%clk 0:00:09.7]}
63... Kf5 {[%clk 0:00:06]} 64. Rf8+ {[%clk 0:00:10.2]} 64... Ke4 {[%clk
0:00:06.7]} 65. Re8+ {[%clk 0:00:09.7]} 65... Kd5 {[%clk 0:00:07.3]} 66. Rd8+
{[%clk 0:00:09.4]} 66... Ke6 {[%clk 0:00:07.4]} 67. Re8+ {[%clk 0:00:09]} 67...
Kf6 {[%clk 0:00:06.8]} 68. Rb8 {[%clk 0:00:09.7]} 68... Kg5 {[%clk 0:00:04.4]}
69. Rg8+ {[%clk 0:00:09.9]} 69... Kf5 {[%clk 0:00:04.8]} 70. Rf8+ {[%clk
0:00:10.5]} 70... Ke4 {[%clk 0:00:05.1]} 71. Re8+ {[%clk 0:00:11]} 71... Kd4
{[%clk 0:00:05.4]} 72. Rd8+ {[%clk 0:00:10.9]} 72... Ke5 {[%clk 0:00:04.6]} 73.
Re8+ {[%clk 0:00:11.3]} 73... Kd6 {[%clk 0:00:04.3]} 74. Rf8 {[%clk 0:00:11.3]}
74... Rxb4 {[%clk 0:00:03.9]} 75. Kf3 {[%clk 0:00:11.9]} 75... Ke5 {[%clk
0:00:03.8]} 76. Re8+ {[%clk 0:00:12.4]} 76... Kf5 {[%clk 0:00:04.1]} 77. Rf8+
{[%clk 0:00:13]} 77... Kg5 {[%clk 0:00:04.7]} 78. Rg8+ {[%clk 0:00:13.6]} 78...
Kh6 {[%clk 0:00:05]} 79. Rh8+ {[%clk 0:00:13.6]} 79... Kg6 {[%clk 0:00:03.5]}
80. Rg8+ {[%clk 0:00:13.7]} 80... Kf5 {[%clk 0:00:03.9]} 81. Rf8+ {[%clk
0:00:14]} 81... Ke5 {[%clk 0:00:04.7]} 82. Re8+ {[%clk 0:00:14.4]} 82... Kf5
{[%clk 0:00:05.4]} 83. Rf8+ {[%clk 0:00:14.7]} 1/2-1/2

[Event "Early-Titled-Tuesday-Blitz-April-16-2024"]
[Site "Chess.com"]
[Date "2024.04.16"]
[Round "4"]
[White "LikeWater"]
[Black "Kushch_Nikolai"]
[Result "1/2-1/2"]
[WhiteElo "2580"]
[BlackElo "2382"]
[TimeControl "180+1"]
[EndTime "8:41:33 PDT"]
[Termination "Game drawn by repetition"]

1. e4 {[%clk 0:02:59]} 1... c5 {[%clk 0:02:59.1]} 2. Nf3 {[%clk 0:02:57.8]} 2...
e6 {[%clk 0:02:59.2]} 3. d3 {[%clk 0:02:55.7]} 3... Nc6 {[%clk 0:02:58.4]} 4. g3
{[%clk 0:02:53.4]} 4... Nf6 {[%clk 0:02:57.6]} 5. Bg2 {[%clk 0:02:50.8]} 5... d5
{[%clk 0:02:56.9]} 6. Qe2 {[%clk 0:02:50.6]} 6... Be7 {[%clk 0:02:56.8]} 7. O-O
{[%clk 0:02:50]} 7... b6 {[%clk 0:02:55]} 8. Re1 {[%clk 0:02:43.5]} 8... Bb7
{[%clk 0:02:52.7]} 9. h4 {[%clk 0:02:38.7]} 9... h6 {[%clk 0:02:52.1]} 10. e5
{[%clk 0:02:30.7]} 10... Nd7 {[%clk 0:02:51.6]} 11. h5 {[%clk 0:02:29.5]} 11...
Qc7 {[%clk 0:02:50.1]} 12. Bf4 {[%clk 0:02:27.5]} 12... O-O-O {[%clk 0:02:48.1]}
13. Nc3 {[%clk 0:02:27]} 13... g6 {[%clk 0:02:41.1]} 14. Nxd5 {[%clk 0:01:46.4]}
14... exd5 {[%clk 0:02:35.5]} 15. e6 {[%clk 0:01:47.1]} 15... Bd6 {[%clk
0:02:35.3]} 16. Bxd6 {[%clk 0:01:43.8]} 16... Qxd6 {[%clk 0:02:34.3]} 17. exd7+
{[%clk 0:01:44.5]} 17... Qxd7 {[%clk 0:02:28.9]} 18. Ne5 {[%clk 0:01:40.1]}
18... Nxe5 {[%clk 0:02:22.9]} 19. Qxe5 {[%clk 0:01:40.8]} 19... Rhe8 {[%clk
0:02:20.7]} 20. Qf6 {[%clk 0:01:36.5]} 20... gxh5 {[%clk 0:02:14.6]} 21. Kh2
{[%clk 0:01:35.6]} 21... Kb8 {[%clk 0:02:00.9]} 22. Qxh6 {[%clk 0:01:24.3]}
22... Rxe1 {[%clk 0:01:49.4]} 23. Rxe1 {[%clk 0:01:23.5]} 23... Qf5 {[%clk
0:01:40.5]} 24. f4 {[%clk 0:01:11.8]} 24... d4 {[%clk 0:01:27.4]} 25. Bxb7
{[%clk 0:01:10.1]} 25... Kxb7 {[%clk 0:01:26.9]} 26. Re5 {[%clk 0:01:06.4]}
26... Qd7 {[%clk 0:01:13.8]} 27. Qf6 {[%clk 0:00:57.8]} 27... Re8 {[%clk
0:01:11.3]} 28. Qg5 {[%clk 0:00:27.1]} 28... Rxe5 {[%clk 0:01:03.8]} 29. Qxe5
{[%clk 0:00:27.7]} 29... Qg4 {[%clk 0:00:55.6]} 30. f5 {[%clk 0:00:23]} 30...
Ka6 {[%clk 0:00:53.5]} 31. Qe4 {[%clk 0:00:11.3]} 31... Qd1 {[%clk 0:00:51.5]}
32. Qg2 {[%clk 0:00:09.7]} 32... f6 {[%clk 0:00:49.7]} 33. b3 {[%clk 0:00:07.1]}
33... Ka5 {[%clk 0:00:46.2]} 34. a3 {[%clk 0:00:07.5]} 34... a6 {[%clk
0:00:43.5]} 35. Qf2 {[%clk 0:00:02.7]} 35... Qc1 {[%clk 0:00:35.1]} 36. Kh3
{[%clk 0:00:03.6]} 36... Qg5 {[%clk 0:00:31]} 37. Qf4 {[%clk 0:00:02.9]} 37...
Qg8 {[%clk 0:00:22.4]} 38. Kh4 {[%clk 0:00:03.3]} 38... Qf7 {[%clk 0:00:18]} 39.
Qd2+ {[%clk 0:00:03.1]} 39... Kb5 {[%clk 0:00:17.1]} 40. Qe2 {[%clk 0:00:03.9]}
40... Qg7 {[%clk 0:00:14.9]} 41. Qxh5 {[%clk 0:00:03.7]} 41... a5 {[%clk
0:00:12.6]} 42. Qe8+ {[%clk 0:00:03.1]} 42... Ka6 {[%clk 0:00:11.7]} 43. Qa8+
{[%clk 0:00:03.5]} 43... Kb5 {[%clk 0:00:11.2]} 44. a4+ {[%clk 0:00:04.2]} 44...
Kb4 {[%clk 0:00:11.3]} 45. Qc6 {[%clk 0:00:04.5]} 45... Kc3 {[%clk 0:00:10.6]}
46. Qxb6 {[%clk 0:00:04.3]} 46... Qh6+ {[%clk 0:00:10.7]} 47. Kg4 {[%clk
0:00:04.3]} 47... Qg5+ {[%clk 0:00:10.9]} 48. Kf3 {[%clk 0:00:05.1]} 48... Qxf5+
{[%clk 0:00:11.3]} 49. Kg2 {[%clk 0:00:04.7]} 49... Qd5+ {[%clk 0:00:10.5]} 50.
Kf2 {[%clk 0:00:04.8]} 50... Qf5+ {[%clk 0:00:10.1]} 51. Kg2 {[%clk 0:00:05.4]}
51... Kxc2 {[%clk 0:00:10.5]} 52. Qxa5 {[%clk 0:00:03.7]} 52... Kxd3 {[%clk
0:00:10]} 53. Qe1 {[%clk 0:00:04]} 53... Kc2 {[%clk 0:00:08.9]} 54. Qe2+ {[%clk
0:00:02.6]} 54... Kxb3 {[%clk 0:00:08.1]} 55. a5 {[%clk 0:00:03.5]} 55... d3
{[%clk 0:00:07.7]} 56. Qd1+ {[%clk 0:00:03.8]} 56... Kc3 {[%clk 0:00:07.4]} 57.
a6 {[%clk 0:00:04.7]} 57... Qe4+ {[%clk 0:00:05.8]} 58. Kg1 {[%clk 0:00:04.9]}
58... Qe2 {[%clk 0:00:05]} 59. Qa1+ {[%clk 0:00:03.9]} 59... Kc4 {[%clk
0:00:04.3]} 60. a7 {[%clk 0:00:04.8]} 60... Qe3+ {[%clk 0:00:04.5]} 61. Kh2
{[%clk 0:00:05.2]} 61... Qf2+ {[%clk 0:00:04.4]} 62. Kh3 {[%clk 0:00:05.6]}
62... Qf5+ {[%clk 0:00:04.6]} 63. Kh4 {[%clk 0:00:04.9]} 63... Qg5+ {[%clk
0:00:04.7]} 64. Kh3 {[%clk 0:00:05.8]} 64... Qf5+ {[%clk 0:00:04.9]} 65. Kg2
{[%clk 0:00:06.4]} 65... Qe4+ {[%clk 0:00:05.1]} 66. Kh2 {[%clk 0:00:06.8]}
66... Qe2+ {[%clk 0:00:04.8]} 67. Kg1 {[%clk 0:00:04.6]} 67... Qe3+ {[%clk
0:00:05]} 68. Kh2 {[%clk 0:00:04.7]} 68... Qe2+ {[%clk 0:00:05.2]} 69. Kh1
{[%clk 0:00:05]} 69... Qf3+ {[%clk 0:00:05.3]} 70. Kh2 {[%clk 0:00:05.6]} 70...
Qf2+ {[%clk 0:00:05.7]} 71. Kh3 {[%clk 0:00:05.5]} 71... Qf5+ {[%clk 0:00:05.8]}
1/2-1/2